{"text_format":"1","workbook":"xlsx","n_sheets":1,"sheets":["Volume"],"not_rendered":{"charts":0,"images":0,"macros":1,"external_links":0,"defined_names":2,"comments":0,"pivot_tables":0},"unopened":[],"bounds":{"document_bytes":16777216,"sheet_cells":100000,"rows_first":2000,"rows_last":500,"rows_between":2000,"halvings":0,"cell_chars":16384,"cell_head_chars":4096},"cells_cut":0,"cells_raw":0,"read":"whole","date_system":"1900"}

{"sheet":"Volume","index":0,"n_rows":83,"n_cols":55,"rows_kept":83,"cut":false,"hidden":false,"merged":[[81,36,81,39],[79,27,81,29],[82,31,83,33],[66,18,66,21],[74,18,74,21],[82,18,82,21],[75,18,75,21],[74,32,75,32],[74,33,75,33],[71,27,72,28],[71,29,72,29],[42,14,42,17],[51,28,51,37],[50,25,50,27],[47,24,48,26],[25,14,25,17],[33,14,33,17],[49,39,50,41],[64,25,65,27],[59,30,59,31],[49,18,49,21],[42,18,42,21],[65,39,65,40],[57,18,57,21],[1,1,5,42],[23,24,23,25],[25,18,25,21],[30,27,30,28],[33,18,33,21],[18,24,18,27],[16,35,16,38],[11,36,11,39],[15,2,15,18],[24,39,24,40]]}
[]
[null,"N4 Lifeskills - Volume                                                                                                                                                                                                   Created by Mr.Lafferty@mathsrevision.com      "]
[]
[]
[]
[]
[]
[null,{"$f":"\"Q1.  Fill in the missing words ( be careful with your spelling )\"","v":"Q1.  Fill in the missing words ( be careful with your spelling )"}]
[]
[null,null,null,null,null,null,null,null,null,null,null,null,null,null,null,null,null,null,null,null,null,null,null,null,null,null,null,null,null,null,null,null,null,null,null,null,null,null,null,null,null,null,null,null,null,null,null,null,null,null,null,"length"]
[null,null,null,null,null,null,null,null,null,null,null,null,null,null,null,null,null,null,null,null,null,null,null,null,null,null,null,null,null,null,null,null,null,null,null,null,null,null,null,null,null,null,null,null,null,null,null,null,null,null,null,"breadth"]
[null,null,null,null,null,null,null,null,null,null,null,null,null,null,null,null,null,null,null,null,null,null,null,null,null,null,null,null,null,null,null,null,null,null,null,null,null,null,null,null,null,null,null,null,null,null,null,null,null,null,null,"height"]
[]
[]
[]
[null,null,"(b) Fill in the missing letters in the formula."]
[]
[null,null,null,null,null,"V","=",null,"x",null,"x",null,null,null,null,null,null,null,null,null,null,null,null,null,null,null,null,null,null,null,null,null,null,null,null,null,null,null,null,null,null,null,null,null,null,null,null,null,null,null,null,"l"]
[null,null,null,null,null,null,null,null,null,null,null,null,null,null,null,null,null,null,null,null,null,null,null,null,null,null,null,null,null,null,null,null,null,null,null,null,null,null,null,null,null,null,null,null,null,null,null,null,null,null,null,"b"]
[null,null,null,null,null,null,null,null,null,null,null,null,null,null,null,null,null,null,null,null,null,null,null,null,null,null,null,null,null,null,null,null,null,null,null,null,null,null,null,null,null,null,null,null,null,null,null,null,null,null,null,"h"]
[]
[]
[null,{"$f":"\"Q2.  Find the volume and total surface area of the cuboid.\"","v":"Q2.  Find the volume and total surface area of the cuboid."}]
[null,null,null,null,null,null,null,null,null,null,null,null,null,null,null,null,null,null,null,null,null,null,null,null,{"$f":"ROUND(RAND()*(4-2)+2,0)","v":3},null,"cm"]
[null,null,null,null,null,null,null,null,null,null,null,null,null,null,null,null,null,null,null,null,null,null,null,null,null,null,null,null,null,null,null,null,null,null,null,null,null,null,null,{"$f":"ROUND(RAND()*(6-3)+3,0)","v":4},null,"cm",null,null,null,null,null,null,null,null,null,{"$f":"2*(AG26*Y24)+2*(AG26*AN25)+2*(AN25*Y24)","v":150}]
[null,null,null,null,null,null,null,null,null,null,null,null,null,null,"Volume =",null,null,null,null,null,null,null,"cm3",null,null,null,null,null,null,null,null,null,{"$f":"Y24+ROUND(RAND()*(8-5)+5,0)","v":9},"cm",null,null,null,null,null,null,null,null,null,null,null,null,null,null,null,null,null,{"$f":"Y24*AG26*AN25","v":108}]
[]
[]
[]
[null,{"$f":"\"Q3.  Find the volume of the cuboid.\"","v":"Q3.  Find the volume of the cuboid."}]
[null,null,null,null,null,null,null,null,null,null,null,null,null,null,null,null,null,null,null,null,null,null,null,null,null,null,null,{"$f":"ROUND(RAND()*(10-5)+5,0)","v":10},null,"m"]
[null,null,null,null,null,null,null,null,null,null,null,null,null,null,null,null,null,null,null,null,null,null,null,null,null,null,null,null,null,null,null,null,{"$f":"ROUND(RAND()*(10-5)+5,0)","v":9},"m"]
[null,null,null,null,null,null,null,null,null,null,null,null,null,null,null,null,null,null,null,null,null,null,null,null,null,null,null,null,null,null,null,null,null,null,null,null,null,null,null,null,null,null,null,null,null,null,null,null,null,null,null,{"$f":"2*(AG32*AB31)+2*(AG32*AH35)+2*(AB31*AH35)","v":446}]
[null,null,null,null,null,null,null,null,null,null,null,null,null,null,"Volume =",null,null,null,null,null,null,null,"m3",null,null,null,null,null,null,null,null,null,null,null,null,null,null,null,null,null,null,null,null,null,null,null,null,null,null,null,null,{"$f":"AH35*AB31*AG32","v":630}]
[null,null,null,null,null,null,null,null,null,null,null,null,null,null,null,null,null,null,null,null,null,null,null,null,null,null,null,null,null,null,null,null,null,{"$f":"ROUND(RAND()*(10-5)+5,0)","v":7},"m"]
[]
[]
[]
[]
[null,{"$f":"\"Q4.  Find the volume of the cube.\"","v":"Q4.  Find the volume of the cube."}]
[]
[null,null,null,null,null,null,null,null,null,null,null,null,null,null,null,null,null,null,null,null,null,null,null,null,null,null,null,null,null,null,null,null,null,null,null,null,null,null,null,null,null,null,null,null,null,null,null,null,null,null,null,{"$f":"6*(AF44*AF44)","v":486}]
[null,null,null,null,null,null,null,null,null,null,null,null,null,null,"Volume =",null,null,null,null,null,null,null,"m3",null,null,null,null,null,null,null,null,null,null,null,null,null,null,null,null,null,null,null,null,null,null,null,null,null,null,null,null,{"$f":"AF44*AF44*AF44","v":729}]
[null,null,null,null,null,null,null,null,null,null,null,null,null,null,null,null,null,null,null,null,null,null,null,null,null,null,null,null,null,null,null,{"$f":"ROUND(RAND()*(10-5)+5,0)","v":9},"m"]
[]
[null,null,null,null,null,null,null,null,null,null,null,null,null,null,null,null,null,null,null,null,null,null,null,null,null,null,null,null,null,null,null,null,null,null,null,null,null,null,null,null,null,null,null,null,null,null,null,null,null,null,null,{"$f":"ROUND((RAND()*(20-7)+7),0)*12","v":132},null,{"$f":"CONCATENATE(AZ46,\"m\")","v":"132m"}]
[null,{"$f":"\"Q5.  Find the volume of the composite shape \"","v":"Q5.  Find the volume of the composite shape "},null,null,null,null,null,null,null,null,null,null,null,null,null,null,null,null,null,null,null,null,null,null,null,null,null,null,null,null,null,null,null,null,null,null,null,null,null,null,null,null,null,null,null,null,null,null,null,null,null,{"$f":"ROUND(AZ46/4,0)","v":33},{"$f":"AZ46-AZ47","v":99},{"$f":"CONCATENATE(AZ47,\"m\")","v":"33m"},{"$f":"CONCATENATE(BA47,\"m\")","v":"99m"}]
[null,null,null,"which is made up of a cuboid and cube.",null,null,null,null,null,null,null,null,null,null,null,null,null,null,null,null,null,null,null,null,{"$f":"BB48","v":"66m"},null,null,null,null,null,null,null,null,null,null,null,null,null,null,null,null,null,null,null,null,null,null,null,null,null,null,{"$f":"BA47*2/3","v":66},null,"66m"]
[null,null,null,null,null,null,null,null,null,null,null,null,null,null,null,null,null,null,null,null,null,null,null,null,null,null,null,null,null,null,null,null,null,null,null,null,null,null,null,null,null,null,null,null,null,null,null,null,null,null,null,{"$f":"AZ48/2","v":33},null,"33m"]
[null,null,null,null,null,null,null,null,null,null,null,null,null,null,null,"Volume =",null,null,null,null,null,null,"m3",null,null,null,null,null,null,null,null,null,null,null,null,null,null,null,null,{"$f":"BB47","v":"33m"},null,null,null,null,null,null,null,null,null,null,null,{"$f":"(AZ46*AZ47*AZ48)+(AZ49*AZ49*AZ49)","v":323433}]
[null,null,null,null,null,null,null,null,null,null,null,null,null,null,null,null,null,null,null,null,null,null,null,null,null,{"$f":"BB49","v":"33m"}]
[null,null,null,null,null,null,null,null,null,null,null,null,null,null,null,null,null,null,null,null,null,null,null,null,null,null,null,null,{"$f":"BB46","v":"132m"}]
[]
[]
[null,{"$f":"\"Q6.  How much water in litres is in the rectangular tank.\"","v":"Q6.  How much water in litres is in the rectangular tank."}]
[]
[null,null,null,null,null,null,null,null,null,null,null,null,null,null,null,null,null,null,null,null,null,null,null,null,null,{"$f":"ROUND(RAND()*(5-3)+3,0)","v":4},"m",null,null,null,null,null,null,null,null,null,{"$f":"ROUND(Z57*1.5,0)","v":6},"m"]
[null,null,null,null,null,null,null,null,null,null,null,null,null,null,null,"Volume =",null,null,null,null,null,null,"Litres",null,null,null,null,null,null,null,null,null,null,null,null,null,null,null,null,null,null,null,null,null,null,null,null,null,null,null,null,{"$f":"Z57*Z59*AE60*1000000/1000","v":80000}]
[null,null,null,null,null,null,null,null,null,null,null,null,null,null,null,null,null,null,null,null,null,null,null,null,null,{"$f":"ROUND(RAND()*(2-1)+1,0)","v":2},"m"]
[null,null,null,null,null,null,null,null,null,null,null,null,null,null,null,null,null,null,null,null,null,null,null,null,null,null,null,null,null,null,{"$f":"ROUND((RAND()*(10-7)+7),0)","v":10},null,"m"]
[]
[]
[null,null,null,null,null,null,null,null,null,null,null,null,null,null,null,null,null,null,null,null,null,null,null,null,null,null,null,null,null,null,null,null,null,null,null,null,null,null,null,null,null,null,null,null,null,null,null,null,null,null,null,{"$f":"ROUND(RAND()*(4-2)+2,0)","v":2},{"$f":"CONCATENATE(AZ63,\"cm\")","v":"2cm"}]
[null,{"$f":"\"Q7.  Find the breadth of the cuboid given the volume is \"&BA67&\".\"","v":"Q7.  Find the breadth of the cuboid given the volume is 48cm³."}]
[null,null,null,null,null,null,null,null,null,null,null,null,null,null,null,null,null,null,null,null,null,null,null,null,null,{"$f":"BA63","v":"2cm"}]
[null,null,null,null,null,null,null,null,null,null,null,null,null,null,null,null,null,null,null,null,null,null,null,null,null,null,null,null,null,null,null,null,null,null,null,null,null,null,null,{"$f":"ROUND(RAND()*(6-3)+3,0)","v":4},null,"cm",null,null,null,null,null,null,null,null,null,{"$f":"2*(AG67*AZ63)+2*(AG67*AZ68)+2*(AZ63*AZ68)","v":88}]
[null,null,null,null,null,null,null,null,null,null,null,null,null,null,null,"Breadth =",null,null,null,null,null,null,"cm",null,null,null,null,null,null,null,null,null,{"$f":"Y65+ROUND(RAND()*(8-5)+5,0)","v":6},"cm",null,null,null,null,null,null,null,null,null,null,null,null,null,null,null,null,null,{"$f":"AZ63*AG67*AN66","v":48},{"$f":"CONCATENATE(AZ67,\"cm\",BB67)","v":"48cm³"},"³"]
[null,null,null,null,null,null,null,null,null,null,null,null,null,null,null,null,null,null,null,null,null,null,null,null,null,null,null,null,null,null,null,null,null,null,null,null,null,null,null,null,null,null,null,null,null,null,null,null,null,null,null,{"$f":"AZ67/(AZ63*AG67)","v":4}]
[]
[null,null,null,null,null,null,null,null,null,null,null,null,null,null,null,null,null,null,null,null,null,null,null,null,null,null,null,null,null,null,null,null,null,null,null,null,null,null,null,null,null,null,null,null,null,null,null,null,null,null,null,{"$f":"ROUND(RAND()*(25-2)+2,0)*2","v":44}]
[null,null,null,null,null,null,null,null,null,null,null,null,null,null,null,null,null,null,null,null,null,null,null,null,null,null,null,null,null,null,null,null,null,null,null,null,null,null,null,null,null,null,null,null,null,null,null,null,null,null,null,{"$f":"AZ70*1.2","v":52.8}]
[null,{"$f":"\"Q8.  Find the volume of the cylinder.\"","v":"Q8.  Find the volume of the cylinder."},null,null,null,null,null,null,null,null,null,null,null,null,null,null,null,null,null,null,null,null,null,null,null,null,null,{"$f":"AZ71","v":52.8},null,"m"]
[null,null,null,null,null,null,null,null,null,null,null,null,null,null,null,null,null,null,null,null,null,null,null,null,null,null,{"$f":"AN74-ROUND(RAND()*(2-1)+1,0)","v":-2}]
[]
[null,null,null,null,null,null,null,null,null,null,null,null,null,null,null,"Volume = ",null,null,null,null,null,null,"m3",null,null,null,null,null,null,null,null,null,{"$f":"AZ70","v":44},"m",null,null,null,null,null,null,null,null,null,null,null,null,null,null,null,null,null,{"$f":"ROUND(PI()*(AZ70/2)*(AZ70/2)*AZ71,1)","v":80284}]
[null,null,null,null,null,null,null,null,null,null,null,null,null,null,null,null,null,null,"(1 decimal place)"]
[]
[]
[null,null,null,null,null,null,null,null,null,null,null,null,null,null,null,null,null,null,null,null,null,null,null,null,null,null,null,null,null,null,null,null,null,null,null,null,null,null,null,null,null,null,null,null,null,null,null,null,null,null,null,{"$f":"BG78+ROUND(RAND()*(20-2)+2,0)*2","v":36},{"$f":"CONCATENATE(AZ79,\"m\")","v":"36m"}]
[null,{"$f":"\"Q9.  Find the volume of the triangular prism.\"","v":"Q9.  Find the volume of the triangular prism."},null,null,null,null,null,null,null,null,null,null,null,null,null,null,null,null,null,null,null,null,null,null,null,null,null,{"$f":"BA80","v":"38m"},null,null,null,null,null,null,null,null,null,null,null,null,null,null,null,null,null,null,null,null,null,null,null,{"$f":"AZ79+2","v":38},{"$f":"CONCATENATE(AZ80,\"m\")","v":"38m"}]
[null,null,null,null,null,null,null,null,null,null,null,null,null,null,null,null,null,null,null,null,null,null,null,null,null,null,null,null,null,null,null,null,null,null,null,null,null,null,null,null,null,null,null,null,null,null,null,null,null,null,null,{"$f":"AZ80*2.5","v":95},"95m"]
[null,null,null,null,null,null,null,null,null,null,null,null,null,null,null,null,null,null,null,null,null,null,null,null,null,null,null,null,null,null,null,null,null,null,null,null,{"$f":"BA81","v":"95m"}]
[null,null,null,null,null,null,null,null,null,null,null,null,null,null,null,"Volume = ",null,null,null,null,null,null,"m3",null,null,null,null,null,null,null,null,{"$f":"BA79","v":"36m"},null,null,null,null,null,null,null,null,null,null,null,null,null,null,null,null,null,null,null,{"$f":"AZ79/2*AZ80*AZ81","v":64980},{"$f":"CONCATENATE(AZ83,\"m\",BB83)","v":"64980m³"},"³"]